fUSD/lending_fUSD_20260507
["ID","MTS","AMOUNT","RATE_DAILY","PERIOD"]
[421750726,1778100633000,-500.0,0.00015221,2]
[421750742,1778100633000,-500.0,0.00015221,2]
[421750767,1778100633000,-5520.97505886,0.00015223,2]
[421750747,1778100633000,-500.0,0.00015222,2]
[421750745,1778100633000,-500.0,0.00015222,2]
[421750763,1778100633000,-272.848252,0.00015223,2]
[421750761,1778100633000,-200.0,0.00015223,2]
[421750758,1778100633000,-226.95527281,0.00015222,2]
[421750759,1778100633000,-200.0,0.00015223,2]
[421750762,1778100633000,-200.0,0.00015223,2]
[421750757,1778100633000,-500.0,0.00015222,2]
[421750760,1778100633000,-200.0,0.00015223,2]
[421750765,1778100633000,-67206.97951017,0.00015223,2]
[421750755,1778100633000,-500.0,0.00015222,2]
[421750766,1778100633000,-83021.72226825,0.00015223,2]
[421750764,1778100633000,-120247.26460768,0.00015223,2]
[421750753,1778100633000,-413.34775141,0.00015222,2]
[421750754,1778100633000,-504.4114804,0.00015222,2]
[421750751,1778100633000,-500.0,0.00015222,2]
[421750752,1778100633000,-500.0,0.00015222,2]
[421750749,1778100633000,-500.0,0.00015222,2]
[421750750,1778100633000,-500.0,0.00015222,2]
[421750746,1778100633000,-500.0,0.00015222,2]
[421750748,1778100633000,-500.0,0.00015222,2]
[421750756,1778100633000,-151.48749307,0.00015222,2]
[421750779,1778100637000,-500.0,0.00015221,2]
[421750778,1778100637000,-500.0,0.00015221,2]
[421750776,1778100637000,-62.06698633,0.00015221,2]
[421750773,1778100637000,-500.0,0.00015221,2]
[421750775,1778100637000,-500.0,0.00015221,2]
[421750769,1778100637000,-500.0,0.00015221,2]
[421750774,1778100637000,-500.0,0.00015221,2]
[421750770,1778100637000,-500.0,0.00015221,2]
[421750771,1778100637000,-500.0,0.00015221,2]
[421750780,1778100637000,-240.26695824,0.00015221,2]
[421750772,1778100637000,-500.0,0.00015221,2]
[421750777,1778100637000,-437.93301367,0.00015221,2]
[421750788,1778100637000,-500.0,0.00015221,2]
[421750783,1778100637000,-289.99725245,0.00015221,2]
[421750793,1778100637000,-1894.42310382,0.00015223,2]
[421750791,1778100637000,-667.96197469,0.00015223,2]
[421750792,1778100637000,-1051.74850456,0.00015223,2]
[421750781,1778100637000,-259.73304176,0.00015221,2]
[421750790,1778100637000,-9662.93463532,0.00015223,2]
[421750789,1778100637000,-4748.68588274,0.00015223,2]
[421750785,1778100637000,-184.33950838,0.00015221,2]
[421750787,1778100637000,-500.0,0.00015221,2]
[421750786,1778100637000,-251.31411726,0.00015221,2]
[421750784,1778100637000,-500.0,0.00015221,2]
[421750782,1778100637000,-210.00274755,0.00015221,2]
[421750794,1778100638000,-815.91901641,0.00015223,2]
[421750795,1778100638000,-38405.57288514,0.00015223,2]
[421750796,1778100638000,-102154.08860006,0.00015223,2]
[421750799,1778100638000,-5297.37439239,0.00015223,2]
[421750798,1778100638000,-2209.94260425,0.00015223,2]
[421750800,1778100638000,-347.25659751,0.00015223,2]
[421750797,1778100638000,-1454.76,0.00015223,2]
[421750802,1778100638000,-720.01455073,0.00015223,2]
[421750801,1778100638000,-1071.0,0.00015223,2]
[421750804,1778100638000,-1900.0,0.00015223,2]
[421750805,1778100638000,-17956.07462555,0.00015223,2]
[421750806,1778100638000,-363.98,0.00015223,2]
[421750807,1778100638000,-378.07173631,0.00015223,2]
[421750803,1778100638000,-879.54028418,0.00015223,2]
[421750857,1778100642000,-665.86939559,0.00015223,2]
[421750855,1778100642000,-674.66855802,0.00015223,2]
[421750856,1778100642000,-7337.39113383,0.00015223,2]
[421750858,1778100643000,-520.45652898,0.00015223,2]
[421750864,1778100645000,-6927.12610612,0.00015223,2]
[421750863,1778100645000,-723.27390214,0.00015223,2]
[421750865,1778100646000,-1434.61950838,0.00015223,2]
[421750866,1778100646000,-341.68629724,0.00015223,2]
[421750867,1778100646000,-1180.95304529,0.00015223,2]
[421750868,1778100646000,-7945.11749261,0.00015223,2]
[421750869,1778100646000,-7531.16660755,0.00015223,2]
[421750871,1778100651000,152.0,0.00015223,30]
[421750872,1778100947000,152.0,0.00015226,30]
[421750873,1778101246000,152.0,0.00015228,30]
[421750874,1778101351000,4276.48933521,8e-05,2]
[421750875,1778101356000,4130.97502773,0.00011,2]
[421750876,1778101388000,440.552857,7.945e-05,2]
[421750877,1778101432000,262.33379853,0.000101,2]
[421750879,1778101475000,10000.01,0.00012,2]
[421750880,1778101475000,10000.01,0.00012,2]
[421750881,1778101475000,10000.01,0.00012,2]
[421750882,1778101475000,10000.01,0.00012,2]
[421750878,1778101475000,889.65898153,0.00012,2]
[421750884,1778101475000,10000.01,0.00012,2]
[421750888,1778101475000,1625812.09713925,0.00012,2]
[421750887,1778101475000,10000.01,0.00012,2]
[421750883,1778101475000,10000.01,0.00012,2]
[421750885,1778101475000,10000.01,0.00012,2]
[421750886,1778101475000,10000.01,0.00012,2]
[421750889,1778101508000,898.823837,7.945e-05,2]
[421750901,1778101524000,210722.0994364,0.000107,2]
[421750899,1778101524000,10000.01,0.000107,2]
[421750892,1778101524000,10000.01,0.000107,2]
[421750898,1778101524000,10000.01,0.000107,2]
[421750893,1778101524000,10000.01,0.000107,2]
[421750895,1778101524000,10000.01,0.000107,2]
[421750896,1778101524000,10000.01,0.000107,2]
[421750897,1778101524000,10000.01,0.000107,2]
[421750894,1778101524000,10000.01,0.000107,2]
[421750891,1778101524000,9101.186163,0.000107,2]
[421750900,1778101524000,10000.01,0.000107,2]
[421750902,1778101530000,179.73361089,9.04e-05,2]
[421750903,1778101549000,152.0,0.00015228,30]
[421750922,1778101832000,-678.68626192,0.00014479,2]
[421750920,1778101832000,-200.0,0.00014428,2]
[421750918,1778101832000,-21279.3841607,0.00014428,2]
[421750917,1778101832000,-657.4,0.00014428,2]
[421750916,1778101832000,-1200.0,0.00014427,2]
[421750913,1778101832000,-126.15698005,0.00014427,2]
[421750915,1778101832000,-300.0,0.00014427,2]
[421750914,1778101832000,-173.84301995,0.00014427,2]
[421750909,1778101832000,-500.0,0.00014091,2]
[421750910,1778101832000,-166.66,0.00014329,2]
[421750911,1778101832000,-161.52,0.00014379,2]
[421750907,1778101832000,-443.124997,0.00014015,2]
[421750908,1778101832000,-501.655003,0.00014015,2]
[421750905,1778101832000,-166.66,0.00013699,2]
[421750912,1778101832000,-150.0,0.00014427,2]
[421750919,1778101832000,-923.1858393,0.00014428,2]
[421750906,1778101832000,-250.0,0.00014,2]
[421750924,1778101832000,-175.36,0.00014521,2]
[421750921,1778101832000,-150.0,0.00014428,2]
[421750938,1778101832000,-785.81555945,0.00014824,2]
[421750936,1778101832000,-1271.14161176,0.00014824,2]
[421750937,1778101832000,-988.87945566,0.00014824,2]
[421750934,1778101832000,-44193.61802668,0.00014824,2]
[421750935,1778101832000,-14284.11492113,0.00014824,2]
[421750931,1778101832000,-333.75181848,0.00014823,2]
[421750932,1778101832000,-546.4636451,0.00014823,2]
[421750926,1778101832000,-166.92953806,0.00014814,2]
[421750930,1778101832000,-500.0,0.00014823,2]
[421750925,1778101832000,-600.0,0.000148,5]
[421750933,1778101832000,-132455.80163698,0.00014824,2]
[421750923,1778101832000,-1321.31373808,0.00014479,2]
[421750927,1778101832000,-500.0,0.00014823,2]
[421750929,1778101832000,-252.42990109,0.00014823,2]
[421750928,1778101832000,-273.29659004,0.00014823,2]
[421750946,1778101837000,-500.0,0.00014823,2]
[421750944,1778101837000,-500.0,0.00014823,2]
[421750945,1778101837000,-500.0,0.00014823,2]
[421750943,1778101837000,-500.0,0.00014823,2]
[421750963,1778101838000,-180.19495398,0.00014823,2]
[421750961,1778101838000,-500.0,0.00014823,2]
[421750962,1778101838000,-500.0,0.00014823,2]
[421750955,1778101838000,-500.0,0.00014823,2]
[421750958,1778101838000,-500.0,0.00014823,2]
[421750957,1778101838000,-500.0,0.00014823,2]
[421750952,1778101838000,-500.0,0.00014823,2]
[421750951,1778101838000,-500.0,0.00014823,2]
[421750959,1778101838000,-500.0,0.00014823,2]
[421750950,1778101838000,-500.0,0.00014823,2]
[421750949,1778101838000,-500.0,0.00014823,2]
[421750948,1778101838000,-500.0,0.00014823,2]
[421750953,1778101838000,-500.0,0.00014823,2]
[421750947,1778101838000,-500.0,0.00014823,2]
[421750954,1778101838000,-500.0,0.00014823,2]
[421750960,1778101838000,-500.0,0.00014823,2]
[421750956,1778101838000,-500.0,0.00014823,2]
[421750966,1778101838000,-500.0,0.00014823,2]
[421750965,1778101838000,-500.0,0.00014823,2]
[421750982,1778101838000,-921.27653065,0.00014824,2]
[421750981,1778101838000,-703.63987009,0.00014824,2]
[421750980,1778101838000,-500.0,0.00014823,2]
[421750978,1778101838000,-500.0,0.00014823,2]
[421750979,1778101838000,-500.0,0.00014823,2]
[421750976,1778101838000,-500.0,0.00014823,2]
[421750974,1778101838000,-430.52904763,0.00014823,2]
[421750977,1778101838000,-500.0,0.00014823,2]
[421750964,1778101838000,-500.0,0.00014823,2]
[421750975,1778101838000,-500.0,0.00014823,2]
[421750973,1778101838000,-69.47095237,0.00014823,2]
[421750970,1778101838000,-500.0,0.00014823,2]
[421750971,1778101838000,-118.31590476,0.00014823,2]
[421750969,1778101838000,-500.0,0.00014823,2]
[421750967,1778101838000,-299.55770553,0.00014823,2]
[421750968,1778101838000,-200.44229447,0.00014823,2]
[421750972,1778101838000,-381.68409524,0.00014823,2]
[421751128,1778101840000,-774.6985844,0.00014824,2]
[421751129,1778101840000,-758.54846512,0.00014824,2]
[421751131,1778101840000,-15439.69750806,0.00014824,2]
[421751133,1778101840000,-2095.592,0.00014824,2]
[421751132,1778101840000,-32508.88239924,0.00014824,2]
[421751130,1778101840000,-3487.8893824,0.00014824,2]
[421751134,1778101840000,-3924.77440229,0.00014824,2]
[421751135,1778101840000,-2878.09324054,0.00014824,2]
[421751137,1778101840000,-1690.5913692,0.00014824,2]
[421751138,1778101840000,-315.87755839,0.00014824,2]
[421751139,1778101840000,-185901.45408381,0.00014824,2]
[421751140,1778101840000,-2269.44115513,0.00014824,2]
[421751136,1778101840000,-4014.30706118,0.00014824,2]
[421751141,1778101840000,-654.75309404,0.00014824,2]
[421751150,1778101843000,-20366.7778451,0.00014824,2]
[421751155,1778101845000,-4739.2710069,0.00014824,2]
[421751159,1778101846000,-6742.72698341,0.00014824,2]
[421751156,1778101846000,-2203.8182,0.00014824,2]
[421751161,1778101992000,3000.0,0.00012009,2]
[421751162,1778102036000,6000.0,0.00012009,2]
[421751164,1778102066000,169.72361089,0.00012009,2]
[421751163,1778102066000,820.27638911,0.00012009,2]
[421751165,1778102111000,3300.0,0.00012009,2]
[421751166,1778102150000,152.0,0.00015229,30]
[421751167,1778102195000,218.51,0.00029452,120]
[421751168,1778102338000,184.0912663,0.00012009,2]
[421751169,1778102576000,411.3,0.00030137,120]
[421751170,1778102752000,152.0,0.00015226,30]
[421751181,1778103031000,-1284.18884217,0.000136,2]
[421751180,1778103031000,-985.20374786,0.000136,2]
[421751202,1778103032000,-2000.0,0.00014428,2]
[421751201,1778103032000,-200.0,0.00014428,2]
[421751199,1778103032000,-176.23,0.00014428,2]
[421751198,1778103032000,-993.22,0.00014428,2]
[421751194,1778103032000,-1200.0,0.00014427,2]
[421751195,1778103032000,-300.0,0.00014427,2]
[421751196,1778103032000,-290.0,0.00014427,2]
[421751197,1778103032000,-150.0,0.00014427,2]
[421751192,1778103032000,-1288.83,0.0001416,2]
[421751191,1778103032000,-150.0,0.00013858,2]
[421751203,1778103032000,-17562.01,0.00014428,2]
[421751188,1778103032000,-162.2,0.00013742,2]
[421751190,1778103032000,-472.39,0.00013828,2]
[421751187,1778103032000,-250.0,0.00013727,2]
[421751186,1778103032000,-166.66,0.00013699,2]
[421751185,1778103032000,-250.0,0.00013676,2]
[421751183,1778103032000,-5295.815589,0.000136,2]
[421751184,1778103032000,-173.58,0.00013653,2]
[421751182,1778103032000,-2434.79182097,0.000136,2]
[421751189,1778103032000,-1288.83,0.00013815,2]
[421751204,1778103032000,-315.65,0.00014428,2]
[421751193,1778103032000,-300.0,0.00014426,2]
[421751205,1778103032000,-200.0,0.00014428,2]
[421751236,1778103032000,-2886.20911339,0.000146,2]
[421751206,1778103032000,-2814.484,0.00014497,2]
[421751226,1778103032000,-2642.63241699,0.000146,2]
[421751233,1778103032000,-620.42829203,0.000146,2]
[421751231,1778103032000,-719.52552339,0.000146,2]
[421751229,1778103032000,-1159.94357071,0.000146,2]
[421751224,1778103032000,-3459.21954555,0.000146,2]
[421751219,1778103032000,-512.90085166,0.000146,2]
[421751221,1778103032000,-2847.55910558,0.000146,2]
[421751218,1778103032000,-119690.83099724,0.000146,2]
[421751217,1778103032000,-341.348914,0.000146,2]
[421751238,1778103032000,-1110.61079819,0.000146,2]
[421751214,1778103032000,-1141.78269182,0.00014569,2]
[421751215,1778103032000,-166.92953806,0.0001459,2]
[421751209,1778103032000,-718.2035,0.000145,2]
[421751208,1778103032000,-1927.69,0.00014497,2]
[421751211,1778103032000,-1288.83,0.00014506,2]
[421751210,1778103032000,-2500.0,0.000145,2]
[421751200,1778103032000,-152.37,0.00014428,2]
[421751207,1778103032000,-230.401,0.00014497,2]
[421751213,1778103032000,-10662.52626135,0.00014569,2]
[421751212,1778103032000,-9682.41465252,0.00014569,2]
[421751216,1778103032000,-341814.63331697,0.000146,2]
[421751259,1778103038000,-189.62280218,0.00013553,2]
[421751260,1778103038000,-867.85260126,0.0001365,2]
[421751261,1778103038000,-984.56739874,0.0001365,2]
[421751263,1778103038000,-10855.69820895,0.000146,2]
[421751262,1778103038000,-151.35277248,0.000145,2]
[421751266,1778103038000,-1000.18778537,0.000146,2]
[421751267,1778103038000,-865.69,0.000146,2]
[421751268,1778103038000,-793.43950684,0.000146,2]
[421751269,1778103038000,-1401.9124575,0.000146,2]
[421751264,1778103038000,-469.10245822,0.000146,2]
[421751265,1778103038000,-261.6352137,0.000146,2]
[421751295,1778103043000,-136600.96665967,0.000146,2]
[421751294,1778103043000,-4892.0,0.000145,2]
[421751293,1778103043000,-108.0,0.000145,2]
[421751292,1778103043000,-500.0,0.00014219,2]
[421751299,1778103046000,-500.0,0.00014411,2]
[421751301,1778103046000,-4015.11574877,0.000146,2]
[421751300,1778103046000,-277099.56064003,0.000146,2]
[421751298,1778103046000,-500.0,0.00014356,2]
[421751317,1778103051000,152.0,0.00014451,7]
[421751318,1778103052000,152.0,0.00014451,7]
[421751319,1778103053000,152.0,0.00014455,7]
[421751320,1778103054000,152.0,0.0001523,30]
[421751323,1778103346000,152.0,0.00014586,7]
[421751322,1778103346000,152.0,0.00014586,7]
[421751324,1778103646000,152.0,0.00014588,7]
[421751325,1778103947000,152.0,0.00014521,7]
[421751327,1778104008000,-126.06704465,0.00012398,2]
[421751326,1778104008000,-175.84298729,0.00012361,2]
[421751328,1778104044000,262.82481083,0.00012009,2]
[421751365,1778104232000,-300.0,0.00013506,2]
[421751369,1778104232000,-250.0,0.00013637,2]
[421751374,1778104232000,-195.75,0.00013699,2]
[421751378,1778104232000,-815.67,0.00013699,2]
[421751380,1778104232000,-200.0,0.00013699,2]
[421751376,1778104232000,-163.13,0.00013699,2]
[421751372,1778104232000,-373.93295535,0.00013677,2]
[421751384,1778104232000,-500.0,0.000138,5]
[421751389,1778104232000,-1100.0,0.000139,5]
[421751388,1778104232000,-548.27,0.00013861,2]
[421751386,1778104232000,-166.66,0.00013836,2]
[421751382,1778104232000,-166.66,0.00013699,2]
[421751360,1778104232000,-165.08,0.00013378,2]
[421751391,1778104232000,-250.0,0.00014,2]
[421751394,1778104232000,-2500.0,0.00014128,2]
[421751393,1778104232000,-166.66,0.0001411,2]
[421751390,1778104232000,-166.66,0.00013973,2]
[421751357,1778104232000,-936.46,0.00013198,2]
[421751363,1778104232000,-2080.17592889,0.00013499,2]
[421751355,1778104232000,-500.0,0.00012968,2]
[421751351,1778104232000,-150.0,0.00012797,2]
[421751352,1778104232000,-706.03,0.00012841,2]
[421751350,1778104232000,-2000.0,0.00012787,2]
[421751354,1778104232000,-283.55,0.00012961,2]
[421751348,1778104232000,-200.0,0.00012434,2]
[421751349,1778104232000,-200.0,0.00012771,2]
[421751353,1778104232000,-804.35,0.00012925,2]
[421751364,1778104232000,-2023.0,0.000135,2]
[421751368,1778104232000,-553.71320465,0.00013637,2]
[421751361,1778104232000,-150.0,0.00013434,2]
[421751358,1778104232000,-548.27,0.00013201,2]
[421751366,1778104232000,-1129.57,0.00013513,2]
[421751359,1778104232000,-500.0,0.00013286,2]
[421751396,1778104232000,-9596.27363526,0.00014161,2]
[421751367,1778104232000,-548.27,0.00013531,2]
[421751356,1778104232000,-173.58,0.0001304,2]
[421751362,1778104232000,-1200.0,0.00013498,2]
[421751395,1778104232000,-999.05985536,0.00014147,2]
[421751387,1778104232000,-150.0,0.00013836,2]
[421751399,1778104232000,-500.0,0.00014227,2]
[421751423,1778104232000,-500.0,0.00014227,2]
[421751426,1778104232000,-500.0,0.00014227,2]
[421751417,1778104232000,-500.0,0.00014227,2]
[421751422,1778104232000,-500.0,0.00014227,2]
[421751419,1778104232000,-500.0,0.00014227,2]
[421751421,1778104232000,-500.0,0.00014227,2]
[421751427,1778104232000,-500.0,0.00014227,2]
[421751420,1778104232000,-500.0,0.00014227,2]
[421751424,1778104232000,-500.0,0.00014227,2]
[421751425,1778104232000,-500.0,0.00014227,2]
[421751428,1778104232000,-500.0,0.00014227,2]
[421751429,1778104232000,-500.0,0.00014227,2]
[421751397,1778104232000,-9158.66501512,0.00014161,2]
[421751432,1778104232000,-500.0,0.00014227,2]
[421751431,1778104232000,-500.0,0.00014227,2]
[421751434,1778104232000,-500.0,0.00014227,2]
[421751433,1778104232000,-500.0,0.00014227,2]
[421751418,1778104232000,-500.0,0.00014227,2]
[421751416,1778104232000,-500.0,0.00014227,2]
[421751430,1778104232000,-500.0,0.00014227,2]
[421751406,1778104232000,-500.0,0.00014227,2]
[421751414,1778104232000,-500.0,0.00014227,2]
[421751403,1778104232000,-232.52455158,0.00014227,2]
[421751392,1778104232000,-2157.14243826,0.00014047,2]
[421751402,1778104232000,-583.62627294,0.00014227,2]
[421751400,1778104232000,-176.70093076,0.00014227,2]
[421751401,1778104232000,-191.30761303,0.00014227,2]
[421751408,1778104232000,-500.0,0.00014227,2]
[421751409,1778104232000,-500.0,0.00014227,2]
[421751398,1778104232000,-548.27,0.00014191,2]
[421751410,1778104232000,-500.0,0.00014227,2]
[421751415,1778104232000,-500.0,0.00014227,2]
[421751407,1778104232000,-500.0,0.00014227,2]
[421751404,1778104232000,-500.0,0.00014227,2]
[421751412,1778104232000,-500.0,0.00014227,2]
[421751411,1778104232000,-500.0,0.00014227,2]
[421751405,1778104232000,-500.0,0.00014227,2]
[421751413,1778104232000,-500.0,0.00014227,2]
[421751448,1778104233000,-500.0,0.00014227,2]
[421751450,1778104233000,-500.0,0.00014227,2]
[421751454,1778104233000,-960.5231931,0.00014227,2]
[421751451,1778104233000,-500.0,0.00014227,2]
[421751452,1778104233000,-960.5231931,0.00014227,2]
[421751453,1778104233000,-960.5231931,0.00014227,2]
[421751457,1778104233000,-960.5231931,0.00014227,2]
[421751456,1778104233000,-960.5231931,0.00014227,2]
[421751467,1778104233000,-960.5231931,0.00014227,2]
[421751460,1778104233000,-960.5231931,0.00014227,2]
[421751468,1778104233000,-960.5231931,0.00014227,2]
[421751459,1778104233000,-960.5231931,0.00014227,2]
[421751455,1778104233000,-960.5231931,0.00014227,2]
[421751458,1778104233000,-960.5231931,0.00014227,2]
[421751440,1778104233000,-500.0,0.00014227,2]
[421751443,1778104233000,-500.0,0.00014227,2]
[421751444,1778104233000,-500.0,0.00014227,2]
[421751442,1778104233000,-500.0,0.00014227,2]
[421751446,1778104233000,-500.0,0.00014227,2]
[421751445,1778104233000,-500.0,0.00014227,2]
[421751447,1778104233000,-500.0,0.00014227,2]
[421751441,1778104233000,-390.59531273,0.00014227,2]
[421751439,1778104233000,-500.0,0.00014227,2]
[421751436,1778104233000,-500.0,0.00014227,2]
[421751435,1778104233000,-500.0,0.00014227,2]
[421751437,1778104233000,-500.0,0.00014227,2]
[421751438,1778104233000,-500.0,0.00014227,2]
[421751470,1778104233000,-960.5231931,0.00014227,2]
[421751449,1778104233000,-500.0,0.00014227,2]
[421751464,1778104233000,-960.5231931,0.00014227,2]
[421751462,1778104233000,-960.5231931,0.00014227,2]
[421751465,1778104233000,-960.5231931,0.00014227,2]
[421751497,1778104233000,-1768.645281,0.00014228,2]
[421751490,1778104233000,-1040.91796118,0.00014227,2]
[421751491,1778104233000,-1040.91796118,0.00014227,2]
[421751493,1778104233000,-500.0,0.00014227,2]
[421751495,1778104233000,-43283.62436437,0.00014228,2]
[421751494,1778104233000,-500.0,0.00014227,2]
[421751486,1778104233000,-1040.91796118,0.00014227,2]
[421751492,1778104233000,-1040.91796118,0.00014227,2]
[421751487,1778104233000,-1040.91796118,0.00014227,2]
[421751488,1778104233000,-1040.91796118,0.00014227,2]
[421751489,1778104233000,-1040.91796118,0.00014227,2]
[421751485,1778104233000,-1040.91796118,0.00014227,2]
[421751484,1778104233000,-1040.91796118,0.00014227,2]
[421751476,1778104233000,-960.5231931,0.00014227,2]
[421751481,1778104233000,-960.5231931,0.00014227,2]
[421751463,1778104233000,-960.5231931,0.00014227,2]
[421751473,1778104233000,-960.5231931,0.00014227,2]
[421751480,1778104233000,-960.5231931,0.00014227,2]
[421751482,1778104233000,-960.5231931,0.00014227,2]
[421751474,1778104233000,-960.5231931,0.00014227,2]
[421751483,1778104233000,-1040.91796118,0.00014227,2]
[421751478,1778104233000,-960.5231931,0.00014227,2]
[421751477,1778104233000,-960.5231931,0.00014227,2]
[421751472,1778104233000,-960.5231931,0.00014227,2]
[421751475,1778104233000,-960.5231931,0.00014227,2]
[421751471,1778104233000,-960.5231931,0.00014227,2]
[421751496,1778104233000,-9606.47816123,0.00014228,2]
[421751469,1778104233000,-960.5231931,0.00014227,2]
[421751461,1778104233000,-960.5231931,0.00014227,2]
[421751466,1778104233000,-960.5231931,0.00014227,2]
[421751479,1778104233000,-960.5231931,0.00014227,2]
[421751504,1778104238000,-2050.45774159,0.00012785,2]
[421751503,1778104238000,-2149.54225841,0.00012785,2]
[421751506,1778104238000,-2494.1904227,0.00014228,2]
[421751505,1778104238000,-66.4,0.00012785,2]
[421751531,1778104240000,-421.97215206,0.00013953,2]
[421751530,1778104240000,-78.02784794,0.00013953,2]
[421751529,1778104240000,-500.0,0.00013953,2]
[421751532,1778104240000,-440.94177385,0.00013953,2]
[421751533,1778104240000,-3140.43607409,0.00014228,2]
[421751534,1778104240000,-902.65302674,0.00014228,2]
[421751545,1778104243000,-290.0373289,0.00014228,2]
[421751544,1778104243000,-337041.66433066,0.00014228,2]
[421751587,1778104246000,-4343.81052465,0.00014228,2]
[421751586,1778104246000,-581032.40358849,0.00014228,2]
[421751585,1778104246000,-252.89091526,0.00014227,2]
[421751595,1778104755000,9413.77,0.00030137,120]
[421751596,1778104953000,279.77602886,8e-05,2]
[421751597,1778104958000,3663.4487591,0.00011,2]
[421751598,1778104999000,200.0,0.00010959,2]
[421751599,1778105000000,200.0,0.00010959,2]
[421751613,1778105083000,10000.01,0.00012,2]
[421751612,1778105083000,10000.01,0.00012,2]
[421751611,1778105083000,10000.01,0.00012,2]
[421751609,1778105083000,10000.01,0.00012,2]
[421751610,1778105083000,10000.01,0.00012,2]
[421751608,1778105083000,10000.01,0.00012,2]
[421751607,1778105083000,10000.01,0.00012,2]
[421751605,1778105083000,1740.14552402,0.00012,2]
[421751606,1778105083000,10000.01,0.00012,2]
[421751614,1778105083000,10000.01,0.00012,2]
[421751615,1778105203000,2008.888137,7.945e-05,2]
[421751616,1778105204000,2991.121863,0.000107,2]
[421751618,1778105205000,59.04231364,0.00014521,7]
[421751617,1778105205000,342812.67552762,0.000107,2]
[421751625,1778105383000,500.0,0.00010699,2]
[421751624,1778105383000,500.0,0.00010699,2]
[421751623,1778105383000,500.0,0.00010699,2]
[421751769,1778105553000,500.0,0.00010699,2]
[421751770,1778105554000,-472.51437042,0.00011769,2]
[421751810,1778105555000,-500.0,0.00014073,2]
[421751808,1778105555000,-304.38,0.00014047,2]
[421751813,1778105555000,-608.31,0.00014078,2]
[421751816,1778105555000,-182.75,0.00014114,2]
[421751817,1778105555000,-69949.5805,0.00014128,2]
[421751799,1778105555000,-241.20377473,0.00013953,2]
[421751802,1778105555000,-250.0,0.00014,2]
[421751801,1778105555000,-221.22,0.00013985,2]
[421751803,1778105555000,-151.0,0.0001402,2]
[421751804,1778105555000,-151.0,0.0001402,2]
[421751807,1778105555000,-239621.531,0.00014028,2]
[421751812,1778105555000,-500.0,0.00014073,2]
[421751811,1778105555000,-500.0,0.00014073,2]
[421751806,1778105555000,-301.9055,0.00014027,2]
[421751814,1778105555000,-500.0,0.0001411,2]
[421751815,1778105555000,-166.66,0.0001411,2]
[421751819,1778105555000,-2549.3183,0.00014192,2]
[421751818,1778105555000,-2000.0,0.00014128,2]
[421751820,1778105555000,-1354.4762041,0.00014221,2]
[421751822,1778105555000,-43536.9859852,0.00014221,2]
[421751823,1778105555000,-50399.1926533,0.00014221,2]
[421751821,1778105555000,-3223.5460942,0.00014221,2]
[421751825,1778105555000,-4462.3068882,0.00014221,2]
[421751824,1778105555000,-19422.9089237,0.00014221,2]
[421751826,1778105555000,-500.0,0.00014221,2]
[421751809,1778105555000,-500.0,0.00014073,2]
[421751798,1778105555000,-150.0,0.00013953,2]
[421751797,1778105555000,-1065.89874321,0.00013947,2]
[421751796,1778105555000,-8959.94759782,0.00013947,2]
[421751828,1778105555000,-1000.0,0.00014227,2]
[421751771,1778105555000,-250.0,0.00011769,2]
[421751772,1778105555000,-150.0,0.00011999,2]
[421751773,1778105555000,-300.0,0.00011999,2]